Cogmind - Beta 13 @@@ ROGUE MODE // 2024.04.02 @ 01:55:53 Player: Gantra Result: Destroyed by S-27 Virus with Autogun Performance ------------- Evolutions (3) 1500 Regions Visited (7) 1400 Robots Destroyed (40) 200 Value Destroyed (1167) 1167 Prototype IDs (6) 120 Alien Tech Used (0) 0 Bonus (727) 727 TOTAL SCORE: 5114 Bonus ------- Follower Combat Kills 27 Entered Garrisons 200 Used RIF Installer 500 Cogmind --------- Core Integrity 0/700 Matter 275/300 Energy 240/240 System Corruption 4% Temperature Cool (0) Movement Core (150) Ox2 Location -7/Factory Parts ------- > --- POWER (2) -------- Nuclear Core > --- PROPULSION (5) --- (None) > --- UTILITY (4) ------ Relay Coupler [Cutter] (25) > --- WEAPON (2) ------- (None) > --- INVENTORY (5) ---- Large Storage Unit Relay Coupler [Grunt] (34) Relay Coupler [Sentry] (21) Peak State ------------ > --- POWER ------------ Ion Engine Light Ion Engine > --- PROPULSION ------- Improved VTOL Module Improved VTOL Module Improved VTOL Module Improved VTOL Module Improved Cesium-ion Thruster > --- UTILITY ---------- Improved Heat Sink Small Storage Unit Large Matter Pod System Shield > --- WEAPON ----------- Precision Beam Rifle Katana > --- INVENTORY -------- Improved Carbon-fiber Leg VTOL Module Improved VTOL Module Large Storage Unit Heavy EM Shotgun Lightning Gun Beam Rifle Axe [Rating: 40] Favorites ----------- Power Light Ion Engine Engine Light Ion Engine Power Core Light Nuclear Core Propulsion Improved VTOL Module Treads Light Treads Leg Titanium Leg Wheel Wheel Hover Unit Airjet Flight Unit Improved VTOL Module Utility Large Matter Pod Device Microactuators Storage Large Matter Pod Processor Transport Network Coupler Hackware System Shield Weapon Assault Rifle Energy Gun Precision Beam Rifle Ballistic Gun Assault Rifle Launcher Rocket Launcher Slashing Weapon Katana Build | -11 -10 -9 -9 -8 -7 -7 -7 ------- Run | Yrd Mat Mat Min Mat Fac Gar Fac Slots Evolved 6 | . . 2 . 2 2 . . Power 1 | . . . . 1 . . . Propulsion 3 | . . 2 . . 1 . . Utility 2 | . . . . 1 1 . . Weapon . | . . . . . . . . Parts Attached 89 | 6 5 10 9 28 7 19 5 Power 15 | 1 . 3 1 5 2 2 1 Engine 12 | 1 . 3 1 5 2 . . Core 3 | . . . . . . 2 1 Reactor . | . . . . . . . . Propulsion 46 | 2 3 7 6 10 3 13 2 Treads 4 | . 3 1 . . . . . Leg 6 | . . . 2 . . 4 . Wheel 2 | 2 . . . . . . . Hover 1 | . . . . . . . 1 Flight 33 | . . 6 4 10 3 9 1 Utility 17 | 1 2 . . 10 1 1 2 Device 4 | . . . . 1 1 1 1 Storage 9 | 1 1 . . 7 . . . Processor 2 | . 1 . . 1 . . . Hackware 2 | . . . . 1 . . 1 Protection . | . . . . . . . . Artifact . | . . . . . . . . Weapon 11 | 2 . . 2 3 1 3 . Energy Gun 4 | . . . . 2 1 1 . Energy Cannon . | . . . . . . . . Ballistic Gun 4 | 2 . . . 1 . 1 . Ballistic Cannon . | . . . . . . . . Launcher 1 | . . . 1 . . . . Special Weapon . | . . . . . . . . Impact Weapon . | . . . . . . . . Slashing Weapon 2 | . . . 1 . . 1 . Piercing Weapon . | . . . . . . . . Special Melee Weapon . | . . . . . . . . Unidentified Prototypes 4 | . . . . 2 1 1 . Parts Lost 37 | . . 2 3 3 . 24 5 Power 5 | . . . . 1 . 4 . Propulsion 20 | . . 2 1 2 . 11 4 Utility 6 | . . . . . . 5 1 Weapon 6 | . . . 2 . . 4 . Highest Loss Streak 12 | . . 1 2 3 . 12 5 To Critical Strikes . | . . . . . . . . Average Slot Usage (%) 84 | . 96 93 86 89 99 70 33 Engine 9 | . 14 11 11 11 15 2 . Treads 7 | . 22 13 . . . . . Leg 1 | . . . . . . 5 . Wheel 1 | . 5 . . . . . . Flight 20 | . . 25 33 34 38 24 15 Device 1 | . . . . . 6 3 4 Storage 12 | . 14 11 11 15 15 12 . Processor 7 | . 11 11 11 8 . . . Hackware 2 | . . . . 1 7 5 7 Energy Gun 1 | . . . . 3 7 1 . Ballistic Gun 12 | . 28 22 10 1 . 1 . Slashing Weapon 4 | . . . 8 9 7 6 . Naked Turns . | . . . . . . . . Heaviest Build 25 | 8 11 11 16 20 21 25 8 Greatest Support 60 | 20 40 60 17 20 25 48 13 Greatest Overweight (x) 4 | . . 2 1 1 . 4 2 Average Overweight (x) . | . . . . . . . . Largest Inventory Capacity 10 | 5 5 5 5 10 8 8 5 Average Capacity 5 | 5 5 5 5 6 8 7 5 Most Carried 8 | 5 5 5 5 8 8 8 5 Average Carried 5 | 3 4 4 4 5 7 6 3 Final Capacity 8 | 5 5 5 5 8 8 5 5 Final Carried 8 | 5 5 5 4 8 8 5 3 Class Distribution -------------------- 58% | Mutant 19% | Sprinter 12% | Scavenger-Sprinter 6% | Scavenger-Mutant Dominant Class ---------------- Mutant | -10/Materials Mutant | -9/Materials Mutant | -9/Mines Sprinter | -8/Materials Scavenger-Sprinter | -7/Factory Mutant | -7/Garrison Sprinter | -7/Factory Resources | -11 -10 -9 -9 -8 -7 -7 -7 ----------- Run | Yrd Mat Mat Min Mat Fac Gar Fac Matter Collected 1528 | 420 152 132 100 415 54 255 . Remotely . | . . . . . . . . Salvage Created 1143 | 102 248 140 156 202 54 241 . Parts 91 | 6 13 14 18 24 3 13 . Haulers Intercepted 3 | . 2 . . 1 . . . Recyclers Shooed 2 | . 1 1 . . . . . Parts Field Recycled . | . . . . . . . . Retrieved Matter . | . . . . . . . . Parts Self-Destructed . | . . . . . . . . Prevented . | . . . . . . . . Kills | -11 -10 -9 -9 -8 -7 -7 -7 ------- Run | Yrd Mat Mat Min Mat Fac Gar Fac Combat Hostiles Destroyed 27 | 1 2 3 6 6 1 8 . Melee 12 | . . . 2 3 . 7 . Guns 11 | 1 2 3 4 . 1 . . AOE 4 | . . . . 3 . 1 . Classes Destroyed 10 | 3 3 . 2 2 . . . Worker 2 | 1 . . . 1 . . . Builder 1 | . . . . 1 . . . Tunneler 3 | 2 . . . 1 . . . Hauler 3 | . 2 . . 1 . . . Recycler 1 | . 1 . . . . . . Watcher 3 | . 1 1 . 1 . . . Swarmer 12 | . . . 3 3 . 6 . Grunt 13 | 1 2 3 2 2 1 2 . Duelist 1 | . . . 1 . . . . Sentry 1 | . . . . 1 . . . Best Kill Streak 6 | 2 3 3 3 6 1 2 . Combat Bots Only 4 | 1 2 2 3 4 1 2 . Max Kills in Single Turn 3 | 1 1 1 1 3 1 1 . Gunslinging . | . . . . . . . . Exploded 3 | . . . . 3 . 1 . Melee 1 | . . . 1 1 . 1 . Uniques/NPCs Destroyed . | . . . . . . . . Combat | -11 -10 -9 -9 -8 -7 -7 -7 -------- Run | Yrd Mat Mat Min Mat Fac Gar Fac Hostile Shots Fired 369 | 10 25 37 37 23 5 189 43 Missed 122 | 5 6 21 10 7 2 53 18 Damage Taken 3529 | 54 227 209 206 299 45 2120 369 Core 945 | 10 29 67 49 79 14 571 126 Absorbed by Shields . | . . . . . . . . Core Remaining (%) 84 | 96 84 . 71 85 . . . Volleys Fired 114 | 15 19 23 12 18 5 22 . Largest 2 | 2 2 2 2 1 1 1 . Hottest 61 | 40 40 40 40 61 61 61 . Shots Fired 175 | 30 38 46 16 18 5 22 . Gun 165 | 30 38 46 16 8 5 22 . Cannon . | . . . . . . . . Launcher 10 | . . . . 10 . . . Special . | . . . . . . . . Kinetic 148 | 30 38 46 16 4 . 14 . Thermal 14 | . . . . 4 5 5 . Explosive 10 | . . . . 10 . . . Electromagnetic 3 | . . . . . . 3 . Robot Hit Streak 11 | 9 8 11 7 5 3 10 . Robot Miss Streak 4 | 2 3 4 4 2 1 2 . Penetration Max . | . . . . . . . . Secondary Targets 3 | . 2 1 . . . . . Max Gunslinging Chain 1 | . 1 1 . . . . . Shots Hit Robots 146 | 25 25 29 13 19 4 31 . Core Hits 70 | 5 10 10 9 17 2 17 . Critical Kills 1 | . 1 . . . . . . Critical Parts Destroyed . | . . . . . . . . Critical Strikes 5 | . 1 . . 2 . 2 . Burn 1 | . . . . . . 1 . Destroy 1 | . 1 . . . . . . Sever 3 | . . . . 2 . 1 . Melee Attacks 52 | . . . 6 9 . 37 . Impact . | . . . . . . . . Slashing 52 | . . . 6 9 . 37 . Piercing . | . . . . . . . . Sneak Attacks . | . . . . . . . . Combat Hostiles . | . . . . . . . . Follow-up Attacks 1 | . . . . . . 1 . Damage Inflicted 3026 | 272 257 311 211 934 67 974 . Guns 1318 | 272 242 305 117 97 67 218 . Cannons . | . . . . . . . . Explosions 732 | . . . . 608 . 124 . Melee 955 | . . . 94 229 . 632 . Ramming 21 | . 15 6 . . . . . Kinetic 1067 | 272 242 305 117 46 . 85 . Thermal 310 | . . . . 51 67 192 . Explosive 608 | . . . . 608 . . . Electromagnetic 65 | . . . . . . 65 . Impact . | . . . . . . . . Slashing 955 | . . . 94 229 . 632 . Piercing . | . . . . . . . . Highest Corruption 4 | . . . . . 4 4 4 Average Corruption 4 | . . . . . 4 4 4 Corruption Purged . | . . . . . . . . Corruption Blocked . | . . . . . . . . Effects 13 | . . . . . . 11 2 Message Errors 3 | . . . . . . 1 2 Heat Flow Errors 5 | . . . . . . 5 . Energy Discharges 2 | . . . . . . 2 . Data Loss (minor) 1 | . . . . . . 1 . Misfires 1 | . . . . . . 1 . Weapon Failures 1 | . . . . . . 1 . Overload Shots . | . . . . . . . . Overflow Damage 15 | . . . . 4 . 11 . Projectiles . | . . . . . . . . Explosions 11 | . . . . 4 . 7 . Melee 4 | . . . . . . 4 . Knockbacks . | . . . . . . . . Impact . | . . . . . . . . Kinetic . | . . . . . . . . Secondary . | . . . . . . . . Self-Inflicted Damage 68 | . . . . 36 . 32 . Shots 2 | . . . . 1 . 1 . Rammed 9 | . 7 2 . . . . . Targets Rammed 11 | . 9 2 . . . . . Kicked . | . . . . . . . . Crushed 2 | . 2 . . . . . . Highest Temperature 272 | 12 19 31 6 108 27 272 . Average Temperature 50 | 7 9 7 5 42 13 102 . Received Heat Transfer 876 | 30 129 141 18 126 27 405 . Siege Activations . | . . . . . . . . Robots Corrupted . | . . . . . . . . Combat Hostiles . | . . . . . . . . Parts Fried . | . . . . . . . . Impact Corruptions . | . . . . . . . . Robots Melted . | . . . . . . . . Combat Hostiles . | . . . . . . . . Parts Melted 1 | . . . . . 1 . . Heat Transferred 581 | . . . . 111 148 322 . Parts Sabotaged . | . . . . . . . . Parts Stolen . | . . . . . . . . Parts Stripped . | . . . . . . . . Power Chain Reactions 1 | . . . . . . 1 . Alert | -11 -10 -9 -9 -8 -7 -7 -7 ------- Run | Yrd Mat Mat Min Mat Fac Gar Fac Peak Influence 339 | 35 133 156 196 339 186 259 118 Initial 154 | . 22 . 56 76 154 130 98 Average 128 | 13 64 69 137 265 161 190 100 Maximum Alert Level 1 | . . . . 1 . 1 . Low Security (%) 80 | 100 100 100 100 21 100 60 100 Level 1 19 | . . . . 78 . 39 . Level 2 . | . . . . . . . . Level 3 . | . . . . . . . . Level 4 . | . . . . . . . . Level 5 . | . . . . . . . . High Security . | . . . . . . . . Max Security . | . . . . . . . . Squads Dispatched 2 | . . 1 1 . . . . Investigation . | . . . . . . . . Extermination . | . . . . . . . . Reinforcement 1 | . . 1 . . . . . Assault 1 | . . . 1 . . . . Garrison . | . . . . . . . . Intercept . | . . . . . . . . Searches Triggered . | . . . . . . . . Construction Impeded . | . . . . . . . . Haulers Reinforced . | . . . . . . . . Active Scanning Responses . | . . . . . . . . Cargo Convoy Interrupts . | . . . . . . . . Stealth | -11 -10 -9 -9 -8 -7 -7 -7 --------- Run | Yrd Mat Mat Min Mat Fac Gar Fac Distress Signals 1 | . 1 . . . . . . Communications Jammed . | . . . . . . . . Distress Signals . | . . . . . . . . Times Spotted 67 | 1 7 14 7 11 1 18 8 Peak Tracking Total 10 | 1 5 7 3 5 1 10 7 Tactical Retreats 6 | . . 1 1 1 . 2 1 Traps | -11 -10 -9 -9 -8 -7 -7 -7 ------- Run | Yrd Mat Mat Min Mat Fac Gar Fac Traps Triggered 3 | . . . . . 1 2 . Indirectly . | . . . . . . . . Trap Hack Attempts . | . . . . . . . . Triggered . | . . . . . . . . Disarmed . | . . . . . . . . Reprogrammed . | . . . . . . . . Reused . | . . . . . . . . Traps Extracted . | . . . . . . . . Installed . | . . . . . . . . Triggered . | . . . . . . . . Machines | -11 -10 -9 -9 -8 -7 -7 -7 ---------- Run | Yrd Mat Mat Min Mat Fac Gar Fac Machines Disabled 3 | . . . . 2 . 1 . Max in Single Turn 1 | . . . . 1 . 1 . Garrison Relay 1 | . . . . . . 1 . Machines Repaired . | . . . . . . . . Machines Dismantled . | . . . . . . . . Machines Sabotaged . | . . . . . . . . Overloaded Fab Kills . | . . . . . . . . Hacking | -11 -10 -9 -9 -8 -7 -7 -7 --------- Run | Yrd Mat Mat Min Mat Fac Gar Fac Machines Accessed 9 | . 1 3 . . 3 1 1 Terminals 5 | . 1 2 . . . 1 1 Fabricators 1 | . . . . . 1 . . Repair Stations . | . . . . . . . . Recycling Units 2 | . . 1 . . 1 . . Scanalyzers . | . . . . . . . . Garrison Access 1 | . . . . . 1 . . Total Hacks 37 | . 4 17 . . 9 1 6 Successful 26 | . 2 12 . . 6 1 5 Failed 11 | . 2 5 . . 3 . 1 Catastrophic . | . . . . . . . . Database Lockouts . | . . . . . . . . Manual 1 | . . . . . 1 . . Terminals 21 | . 4 10 . . . 1 6 Fabricators 3 | . . . . . 3 . . Repair Stations . | . . . . . . . . Recycling Units 9 | . . 7 . . 2 . . Scanalyzers . | . . . . . . . . Garrison Access 4 | . . . . . 4 . . Terminal Hacks 14 | . 2 6 . . . 1 5 Record 5 | . . 2 . . . . 3 Prototype ID Bank 1 | . 1 . . . . . . Emergency Access Points 2 | . 1 . . . . 1 . Alert Level 1 | . . . . . . . 1 Locate Traps 2 | . . 2 . . . . . Hauler Manifests 1 | . . 1 . . . . . Zone Layout 2 | . . 1 . . . . 1 Fabricator Hacks 1 | . . . . . 1 . . Network Status 1 | . . . . . 1 . . Repair Station Hacks . | . . . . . . . . Recycling Unit Hacks 8 | . . 6 . . 2 . . Recycle Component 1 | . . 1 . . . . . Process 2 | . . 2 . . . . . Report Inventory 3 | . . 2 . . 1 . . Retrieve Matter 1 | . . 1 . . . . . Retrieve Components 1 | . . . . . 1 . . Scanalyzer . | . . . . . . . . Garrison Access Hacks 3 | . . . . . 3 . . Unlock Access 1 | . . . . . 1 . . Coupler Status 2 | . . . . . 2 . . Unauthorized Hacks . | . . . . . . . . Terminals . | . . . . . . . . Fabricators . | . . . . . . . . Repair Stations . | . . . . . . . . Recycling Units . | . . . . . . . . Scanalyzers . | . . . . . . . . Garrison Access . | . . . . . . . . Data Cores Recovered . | . . . . . . . . Used . | . . . . . . . . Hacking Detections 4 | . 1 1 . . 1 1 . Full Trace Events . | . . . . . . . . Feedback Events . | . . . . . . . . Feedback Blocked . | . . . . . . . . Robot Schematics Acquired . | . . . . . . . . Robots Built . | . . . . . . . . Authchips . | . . . . . . . . Time . | . . . . . . . . Total Robot Build Rating . | . . . . . . . . Part Schematics Acquired . | . . . . . . . . Parts Built . | . . . . . . . . Authchips . | . . . . . . . . Time . | . . . . . . . . Total Part Build Rating . | . . . . . . . . Parts Repaired . | . . . . . . . . Time . | . . . . . . . . Parts Recycled 1 | . . 1 . . . . . Recycled Matter 41 | . . 41 . . . . . Retrieved Matter 41 | . . 41 . . . . . Retrieved Components 3 | . . . . . 3 . . Parts Scanalyzed . | . . . . . . . . Part Schematics Acquired . | . . . . . . . . Parts Damaged . | . . . . . . . . Bothacking | -11 -10 -9 -9 -8 -7 -7 -7 ------------ Run | Yrd Mat Mat Min Mat Fac Gar Fac Used RIF Installer 1 | . . . . . . 1 . Robots Hacked . | . . . . . . . . Non-combat . | . . . . . . . . Combat . | . . . . . . . . Robot Hacks Applied . | . . . . . . . . Relay Couplers Released 5 | . . . . . . 5 . Machine Destruction 5 | . . . . . . 5 . Attached 1 | . . . . . . . 1 Fabnet Peak Effective % . | . . . . . . . . Robots Rewired . | . . . . . . . . Allies Hacked . | . . . . . . . . Hacks Repelled . | . . . . . . . . Allies | -11 -10 -9 -9 -8 -7 -7 -7 -------- Run | Yrd Mat Mat Min Mat Fac Gar Fac Total Allies 1 | . . . 1 . . . . Largest Group 1 | . . . . 1 . . . Highest-Rated Group 31 | . . . . 31 . . . Highest-Rated Ally 31 | . . . . 31 . . . Total Orders . | . . . . . . . . Ally Attacks 10 | . . . . 10 . . . Total Damage 122 | . . . . 122 . . . Kills 1 | . . . . 1 . . . Allies Corrupted . | . . . . . . . . Allies Melted . | . . . . . . . . Intel | -11 -10 -9 -9 -8 -7 -7 -7 ------- Run | Yrd Mat Mat Min Mat Fac Gar Fac Robot Analysis Total . | . . . . . . . . Derelict Logs Recovered . | . . . . . . . . Drone Launches . | . . . . . . . . Drone Recoveries . | . . . . . . . . Exploration | -11 -10 -9 -9 -8 -7 -7 -7 ------------- Run | Yrd Mat Mat Min Mat Fac Gar Fac Turns Passed 1731 | 157 425 214 172 269 81 322 91 Spaces Moved 1950 | 126 252 210 201 446 225 272 218 Core 31 | 25 . . . . . . 6 Treads 211 | . 173 38 . . . . . Legs 22 | . . . 2 . . 20 . Wheels 180 | 101 79 . . . . . . Hover 16 | . . . . . . . 16 Flight 1490 | . . 172 199 446 225 252 196 Fastest Speed 23 | 50 80 31 31 26 23 23 29 Average Speed 54 | 74 134 56 56 28 23 47 38 Slowest Speed 355 | 80 160 260 190 117 23 355 150 Overloaded Moves . | . . . . . . . . Propulsion Burnouts . | . . . . . . . . Robots Hopped 10 | . . 8 . . 1 1 . Cave-ins Triggered . | . . . . . . . . Exploration Rate (%) 20 | 6 30 24 37 24 5 30 8 Regions Visited 7 Branch Regions 1 Pre-discovered Areas . | . . . . . . . . Known Exits Taken 1 | . . . . . 1 . . Unknown Exits Taken 5 | 1 1 1 1 1 . . . Scrap Searched . | . . . . . . . . Spaces Dug . | . . . . . . . . Terrain Destroyed 58 | . . . . 54 . 4 . Melee . | . . . . . . . . Projectile . | . . . . . . . . AOE 58 | . . . . 54 . 4 . Terrain Rammed . | . . . . . . . . Walls Destroyed . | . . . . . . . . Machines Disabled . | . . . . . . . . Actions | -11 -10 -9 -9 -8 -7 -7 -7 --------- Run | Yrd Mat Mat Min Mat Fac Gar Fac Total 2369 | 163 300 253 236 558 247 386 226 Wait 21 | . . 2 . 10 . 9 . Move 1924 | 125 251 194 200 445 222 269 218 Hop 9 | . . 7 . . 1 1 . Pick Up 70 | 14 8 9 2 21 7 6 3 Fast Attach 26 | . 1 . 5 10 3 7 . Attach 38 | 6 1 4 1 8 3 10 5 Detach 6 | . . . . 3 . 3 . Swap 25 | . 3 6 3 10 1 2 . Drop 56 | 3 8 6 7 24 5 3 . Fire 114 | 15 19 23 12 18 5 22 . Melee 51 | . . . 6 9 . 36 . Ram . | . . . . . . . . Kick . | . . . . . . . . Crush 11 | . 9 2 . . . . . Escape Stasis 18 | . . . . . . 18 . Rewire . | . . . . . . . . Trap . | . . . . . . . . Miscellaneous . | . . . . . . . . Route ------- -11/Scrapyard -10/Materials (discovered 2 exits: *Mat / [*Min]) -9/Materials -9/Mines -8/Materials -7/Factory -7/Garrison -7/Factory History --------- Turn | Location | Event 2 | -11/Scrapyard | Met Revision 17 72 | -11/Scrapyard | Discovered new exit (range 8) 158 | -11/Scrapyard | Entered Materials 295 | -10/Materials | Discovered new exit (range 7) 307 | -10/Materials | Build established: Mutant 329 | -10/Materials | Discovered new exit (range 15) 583 | -10/Materials | Entered another Materials area 583 | -9/Materials | Evolved 2 slots: Propulsion x2 793 | -9/Materials | Discovered new exit (range 7) 797 | -9/Materials | Entered Mines 958 | -9/Mines | Discovered new exit (range 6) 959 | -9/Mines | Met a Derelict testing a Signal Generator 969 | -9/Mines | Entered Materials 969 | -8/Materials | Accompanied by 1 ally 969 | -8/Materials | Evolved 2 slots: Power x1, Utility x1 1050 | -8/Materials | Lost 3 parts (1p2n) 1169 | -8/Materials | Discovered new exit (range 15) 1238 | -8/Materials | Entered Factory 1238 | -7/Factory | Evolved 2 slots: Propulsion x1, Utility x1 1315 | -7/Factory | Identified exit to Garrison 1319 | -7/Factory | Entered Garrison 1354 | -7/Garrison | Triggered checkpoint 1429 | -7/Garrison | Lost 6 parts (2p2n1u1w) 1459 | -7/Garrison | Garrison Relay disabled 1553 | -7/Garrison | Lost 4 parts (2n1u1w) 1577 | -7/Garrison | Core integrity fell below 50% 1619 | -7/Garrison | Lost 12 parts (2p5n3u2w) 1632 | -7/Garrison | Discovered new exit (range 12) 1635 | -7/Garrison | Installed Relay Interface Framework 1639 | -7/Garrison | Core integrity fell below 20% 1641 | -7/Garrison | Entered Factory 1732 | -7/Factory | Destroyed by S-27 Virus with Autogun Last Messages --------------- Downloaded map data. Acquired Airjet. >5TMX3KMYBCJNUM J2ZP,6CIT YYRXNKFD0 Acquired Nuclear Core. ALERT: All DSF locations entering lockdown mode. K-01 Serf cleans the Nuclear Reactor. Connecting with Terminal... K-01 Serf collects debris. Imp. VTOL Module destroyed. R-06 Scavenger destroyed. VTOL Module destroyed. K-01 Serf collects debris. K-01 Serf destroyed. [Achievement: Universal Adapter] K-01 Serf cleans the Assembly Bed. VTOL Module destroyed. Airjet destroyed. DYU CZ|MJBLOBX/N9QXV Hpw. Tractor Beam destroyed. [Achievement: 5k Club] Map ----- +----------------------------------------------------+ | ?????????????????????????????????????????????????? | | ?????????????????????????????????????????????????? | | ?????????????????????????????????????????????????? | | ?????????????????????????????????????????????????? | | ?????????????????????????????????????????????????? | | ?????????????????????????????????????????????????? | | ?????????????????????????????????????????????????? | | ?????????????????????????????????????????????????? | | ?????????????????????????????????????????????????? | | ????????????????????????????? ?????? ?????? ????? | | ????????????????????????????? ????? ?????? #??? | | ???????????????????????????? ???? ???? #??? | | ????????????????????????????" "????" "????" #??? | | ????????????????????????????" "???"" """""" +??? | | ???????????????????????????"" ""?""" """""" #??? | | ????????????????????""?????"" ""?""" """""" #??? | | ??????????????????? ? #??? | | ???????????????????""" """""" """""" #??? | | ????????????????"""""" """""" """""" #??? | | ???????????? """""" """""" """""" #?## | | ??????????? """""" """""" """""" !!!#?# | | ??????????? !!!#?# | | ?????????? !! #?# | | ?????????? s s #?# | | ?????????? s #?# | | ????????????# #######@############# #?# | | ??????????????????????? ??????????# ### | | ????????????????????? ????????# | | ???????????????????# ??????# | | ???????????????????# #?????# | | ???????????????????# #?????# | | ???????????????????# #?????# | | ???????????????????# #?????# | | ???????????????????# #?????# | | ???????????????????# #?????#### ##### ! | | ???????????????????+ #????????#+#???# = | | ???????????????????# #??????????????#!% | | ???????????????????# #??????????????# | | ???????????????????##############??????????????# | | ???????????????????????????????????????????????# | | ???????????????????????????????????????????????+ | | ???????????????????????????????????????????????# | | ???????????????????????????????????????????????? | | ?????????????????????????????????????????????????? | | ?????????????????????????????????????????????????? | | ?????????????????????????????????????????????????? | | ?????????????????????????????????????????????????? | | ?????????????????????????????????????????????????? | | ?????????????????????????????????????????????????? | | ?????????????????????????????????????????????????? | +----------------------------------------------------+ Best States ------------- Heat Dissipation 48 Energy Generation 23 Energy Capacity 325 Matter Stores 450 Matter Capacity 500 Sight Range 16 Terrain Scan Density 10 Melee Speed Boost 20 Evasion (%) 65 Recoil Reduction 3 Defensive Hacking 10 Relay Coupler Types 1 Relay Coupler Value 25 Item Schematics ----------------- None Robot Schematics ------------------ None Fabricated ------------ Nothing Alien Tech Used ----------------- None Achievements -------------- 5k Club Can't Catch Me Loot Pinata Made in Tau Ceti IV Shopping List Universal Adapter Challenges ------------ None Game ------ Seed SpliceInsulationTorch Manual? 0 Play Time 00:51:59 Cumulative 1.9 hours Start 2024.04.02 @ 00:59:33 End 2024.04.02 @ 01:55:53 Sessions 1 Manual Loads 0 Difficulty Rogue Special Mode None Game No. 3 Rogue 3 Adventurer 0 Explorer 0 Win Type - Total 0 Types 0/0/0/0/0/0/0/0/0 Lore% 2 Gallery% 5 Achievement% 6 Wizard Run 0 Options --------- Layout 1 ASCII 0 Keyboard 0 Movement Arrows Keybinds 0 Fullscreen 1 Font 24/Smallcaps Map View 50x35 Zoom Use 0% Tactical HUD 0 Map Filters NONE Filters NONE Steam 1 RUN: aa71ccc8-89bd-47df-8a09-0f80b8cfc788